fUSD/lending_fUSD_20260501
["ID","MTS","AMOUNT","RATE_DAILY","PERIOD"]
[421434817,1777645845000,-336341.02884652,0.00012,2]
[421434818,1777645845000,-277.97725812,0.00012,2]
[421434815,1777645845000,-422.48918609,0.0001199,2]
[421434807,1777645845000,-1000.0,0.0001197,2]
[421434810,1777645845000,-1000.0,0.0001197,2]
[421434812,1777645845000,-823.0,0.00011978,2]
[421434814,1777645845000,-161.0,0.0001199,2]
[421434813,1777645845000,-1113.0,0.00011978,2]
[421434811,1777645845000,-260.0,0.00011973,2]
[421434808,1777645845000,-1000.0,0.0001197,2]
[421434822,1777645846000,-136205.06408243,0.00012,2]
[421434823,1777645846000,-39174.20781948,0.00012,2]
[421434824,1777645846000,-2060.90480909,0.00010025,2]
[421434825,1777645846000,-1374.83906963,0.00010025,2]
[421434827,1777645846000,-151.0,0.00010381,2]
[421434829,1777645846000,-491.9060975,0.00011601,2]
[421434828,1777645846000,-464.35240005,0.00010471,2]
[421434832,1777645846000,-7149.09369397,0.00012,2]
[421434831,1777645846000,-8769.6,0.00012,2]
[421434826,1777645846000,-323.84816528,0.00010025,2]
[421434830,1777645846000,-370.89333717,0.00012,2]
[421434850,1777645909000,500.0,0.00029452,120]
[421434854,1777646076000,-150.0,9.04e-05,2]
[421434855,1777646076000,-16853.83027484,9.04e-05,2]
[421434853,1777646076000,-300.0,9.039e-05,2]
[421434856,1777646092000,-5776.16972516,9.041e-05,2]
[421434859,1777646621000,150.76,4.833e-05,2]
[421434860,1777646622000,150.76,5.316e-05,2]
[421434861,1777646622000,150.76,5.799e-05,2]
[421434863,1777646622000,150.76,6.766e-05,2]
[421434862,1777646622000,150.76,6.283e-05,2]
[421434866,1777646623000,150.76,8.216e-05,2]
[421434865,1777646623000,150.76,7.733e-05,2]
[421434864,1777646623000,150.76,7.249e-05,2]
[421434867,1777646767000,5371.72927365,9.04e-05,4]
[421434871,1777647031000,-150.76,8.699e-05,2]
[421434872,1777647031000,-228.09488543,8.94e-05,2]
[421434874,1777647031000,-500.0,8.94e-05,2]
[421434873,1777647031000,-500.0,8.94e-05,2]
[421434879,1777647032000,-300.0,8.94e-05,2]
[421434878,1777647032000,-197.42489085,8.94e-05,2]
[421434877,1777647032000,-577.06651797,8.94e-05,2]
[421434876,1777647032000,-500.0,8.94e-05,2]
[421434875,1777647032000,-500.0,8.94e-05,2]
[421434881,1777647032000,-562468.55494124,8.941e-05,2]
[421434882,1777647032000,-474.202935,8.941e-05,2]
[421434880,1777647032000,-1239.9326,8.941e-05,2]
[421434901,1777647038000,-265.86090724,8.94e-05,2]
[421434900,1777647038000,-500.53714952,8.94e-05,2]
[421434953,1777647039000,-500.0,8.94e-05,2]
[421434954,1777647039000,-196.18501634,8.94e-05,2]
[421434957,1777647039000,-309.80876198,8.94e-05,2]
[421434956,1777647039000,-500.0,8.94e-05,2]
[421434948,1777647039000,-421.72703973,8.94e-05,2]
[421434946,1777647039000,-337.26320013,8.94e-05,2]
[421434959,1777647039000,-500.0,8.94e-05,2]
[421434945,1777647039000,-234.13909276,8.94e-05,2]
[421434947,1777647039000,-78.27296027,8.94e-05,2]
[421434952,1777647039000,-88.55243838,8.94e-05,2]
[421434958,1777647039000,-190.19123802,8.94e-05,2]
[421434951,1777647039000,-411.44756162,8.94e-05,2]
[421434950,1777647039000,-286.70658571,8.94e-05,2]
[421434949,1777647039000,-500.0,8.94e-05,2]
[421434961,1777647039000,-500.0,8.94e-05,2]
[421434970,1777647039000,-70790.38051538,8.941e-05,2]
[421434966,1777647039000,-0.91280345,8.94e-05,2]
[421434955,1777647039000,-303.81498366,8.94e-05,2]
[421434967,1777647039000,-500.0,8.94e-05,2]
[421434968,1777647039000,-500.0,8.94e-05,2]
[421434963,1777647039000,-500.0,8.94e-05,2]
[421434965,1777647039000,-499.08719655,8.94e-05,2]
[421434969,1777647039000,-174.16223349,8.94e-05,2]
[421434962,1777647039000,-500.0,8.94e-05,2]
[421434960,1777647039000,-500.0,8.94e-05,2]
[421434964,1777647039000,-500.0,8.94e-05,2]
[421434988,1777647040000,-150.76,9.666e-05,2]
[421434989,1777647040000,-713.18664846,9.666e-05,2]
[421434992,1777647040000,-1213.68,9.67e-05,2]
[421434993,1777647040000,-162.94,9.766e-05,2]
[421434995,1777647040000,-381.0,9.836e-05,2]
[421434998,1777647040000,-174.61919141,9.964e-05,2]
[421434997,1777647040000,-1350.6,9.926e-05,2]
[421434996,1777647040000,-2500.0,9.87e-05,2]
[421434999,1777647040000,-90000.09,9.97e-05,2]
[421434987,1777647040000,-578.20924308,9.653e-05,2]
[421434994,1777647040000,-420.0,9.834e-05,2]
[421434991,1777647040000,-68375.38,9.67e-05,2]
[421434983,1777647040000,-150.0,9.568e-05,2]
[421434986,1777647040000,-200.0,9.6e-05,2]
[421434985,1777647040000,-300.45549685,9.569e-05,2]
[421434980,1777647040000,-713.18664846,9.386e-05,2]
[421434981,1777647040000,-200.0,9.443e-05,2]
[421434984,1777647040000,-648.87286559,9.569e-05,2]
[421435009,1777647040000,-5353.31,0.00010475,2]
[421434976,1777647040000,-713.18664848,9.105e-05,2]
[421434975,1777647040000,-260.0,9.041e-05,2]
[421434978,1777647040000,-2000.0,9.112e-05,2]
[421434979,1777647040000,-150.76,9.182e-05,2]
[421434982,1777647040000,-216.64,9.492e-05,2]
[421434974,1777647040000,-438552.79140838,8.941e-05,2]
[421434990,1777647040000,-999.99,9.67e-05,2]
[421435002,1777647040000,-166.67,0.00010009,2]
[421434977,1777647040000,-6788.8087,9.105e-05,2]
[421435001,1777647040000,-308.00256203,0.0001,2]
[421435000,1777647040000,-218.34855583,0.0001,2]
[421435028,1777647040000,-500.0,0.00010694,2]
[421435022,1777647040000,-721.12765535,0.00010694,2]
[421435025,1777647040000,-151.0,0.00010694,2]
[421435030,1777647040000,-273.98554512,0.00010694,2]
[421435021,1777647040000,-500.0,0.00010694,2]
[421435024,1777647040000,-500.0,0.00010694,2]
[421435027,1777647040000,-151.0,0.00010694,2]
[421435023,1777647040000,-151.0,0.00010694,2]
[421435029,1777647040000,-151.0,0.00010694,2]
[421435020,1777647040000,-1000.0,0.00010652,2]
[421435016,1777647040000,-255.0,0.00010525,2]
[421435018,1777647040000,-1371.16861793,0.000106,2]
[421435026,1777647040000,-500.0,0.00010694,2]
[421435019,1777647040000,-5000.0,0.000106,2]
[421435017,1777647040000,-554.67262362,0.000106,2]
[421435008,1777647040000,-499.99,0.00010475,2]
[421435005,1777647040000,-166.8,0.00010411,2]
[421435007,1777647040000,-1820.43,0.00010475,2]
[421435006,1777647040000,-299.99,0.00010475,2]
[421435010,1777647040000,-1909.36,0.00010475,2]
[421435003,1777647040000,-2000.0,0.00010251,2]
[421435004,1777647040000,-154.0,0.00010267,2]
[421435015,1777647040000,-181.08010149,0.00010512,2]
[421435011,1777647040000,-650.71,0.00010475,2]
[421435013,1777647040000,-9999.99,0.00010475,2]
[421435012,1777647040000,-4563.15,0.00010475,2]
[421435014,1777647040000,-150.99,0.00010475,2]
[421435076,1777647041000,-1267.0,0.00010958,2]
[421435071,1777647041000,-623.0,0.00010958,2]
[421435079,1777647041000,-416.0,0.00010958,2]
[421435078,1777647041000,-200.0,0.00010958,2]
[421435077,1777647041000,-1220.0,0.00010958,2]
[421435065,1777647041000,-711.87,0.00010855,2]
[421435067,1777647041000,-2192.874,0.00010917,2]
[421435062,1777647041000,-302.0,0.00010817,2]
[421435060,1777647041000,-150.0,0.000108,2]
[421435059,1777647041000,-150.0,0.000108,2]
[421435073,1777647041000,-1350.0,0.00010958,2]
[421435068,1777647041000,-163.101,0.00010917,2]
[421435072,1777647041000,-3533.0,0.00010958,2]
[421435090,1777647041000,-300.0,0.00011098,2]
[421435070,1777647041000,-150.0,0.0001095,2]
[421435075,1777647041000,-150.0,0.00010958,2]
[421435069,1777647041000,-500.0,0.00010932,2]
[421435080,1777647041000,-1664.0,0.00010958,2]
[421435081,1777647041000,-501.39415227,0.00010959,2]
[421435089,1777647041000,-166.66,0.00011068,2]
[421435088,1777647041000,-187.78006525,0.0001106,2]
[421435093,1777647041000,-5734.25619333,0.00011099,2]
[421435087,1777647041000,-150.0,0.0001105,2]
[421435082,1777647041000,-166.66,0.00010959,2]
[421435083,1777647041000,-150.0,0.00010959,2]
[421435091,1777647041000,-300.0,0.00011098,2]
[421435066,1777647041000,-150.0,0.000109,2]
[421435074,1777647041000,-1049.0,0.00010958,2]
[421435058,1777647041000,-259.99293565,0.000108,2]
[421435047,1777647041000,-500.0,0.00010694,2]
[421435064,1777647041000,-150.0,0.0001085,2]
[421435031,1777647041000,-151.0,0.00010694,2]
[421435033,1777647041000,-151.0,0.00010694,2]
[421435037,1777647041000,-151.0,0.00010694,2]
[421435032,1777647041000,-151.0,0.00010694,2]
[421435034,1777647041000,-151.0,0.00010694,2]
[421435035,1777647041000,-151.0,0.00010694,2]
[421435038,1777647041000,-500.0,0.00010694,2]
[421435043,1777647041000,-500.0,0.00010694,2]
[421435044,1777647041000,-500.0,0.00010694,2]
[421435039,1777647041000,-500.0,0.00010694,2]
[421435036,1777647041000,-151.0,0.00010694,2]
[421435041,1777647041000,-500.0,0.00010694,2]
[421435042,1777647041000,-500.0,0.00010694,2]
[421435040,1777647041000,-500.0,0.00010694,2]
[421435048,1777647041000,-500.0,0.00010694,2]
[421435045,1777647041000,-500.0,0.00010694,2]
[421435054,1777647041000,-150.0,0.000108,2]
[421435050,1777647041000,-151.0,0.000107,5]
[421435049,1777647041000,-159.0,0.000107,5]
[421435051,1777647041000,-987959.92657926,0.000107,2]
[421435052,1777647041000,-375.1757124,0.00010755,2]
[421435053,1777647041000,-150.0,0.000108,2]
[421435056,1777647041000,-150.0,0.000108,2]
[421435055,1777647041000,-150.0,0.000108,2]
[421435057,1777647041000,-150.0,0.000108,2]
[421435046,1777647041000,-500.0,0.00010694,2]
[421435063,1777647041000,-166.67,0.00010835,2]
[421435061,1777647041000,-150.0,0.000108,2]
[421435092,1777647041000,-5734.25619335,0.00011099,2]
[421435084,1777647041000,-10105.23,0.00011,2]
[421435086,1777647041000,-150.0,0.00011,2]
[421435129,1777647041000,-194.72792766,0.00011608,2]
[421435121,1777647041000,-1084.75773405,0.00011485,2]
[421435126,1777647041000,-433.0,0.00011577,2]
[421435128,1777647041000,-150.0,0.000116,2]
[421435127,1777647041000,-150.0,0.000116,2]
[421435135,1777647041000,-711.87,0.00011669,2]
[421435136,1777647041000,-5734.25619333,0.00011678,2]
[421435139,1777647041000,-150.0,0.0001175,2]
[421435143,1777647041000,-844.0,0.000118,2]
[421435132,1777647041000,-2060.904809,0.00011647,2]
[421435140,1777647041000,-1879.67411709,0.0001176,2]
[421435141,1777647041000,-1084.75773405,0.00011762,2]
[421435142,1777647041000,-150.0,0.000118,2]
[421435133,1777647041000,-150.0,0.0001165,2]
[421435134,1777647041000,-166.67,0.00011661,2]
[421435138,1777647041000,-150.0,0.000117,2]
[421435137,1777647041000,-150.0,0.000117,2]
[421435146,1777647041000,-150.0,0.0001185,2]
[421435145,1777647041000,-1000.0,0.000118,2]
[421435144,1777647041000,-307.0,0.000118,2]
[421435147,1777647041000,-929.28211759,0.0001188,10]
[421435148,1777647041000,-2000.0,0.0001188,2]
[421435150,1777647041000,-300.0,0.00011884,2]
[421435149,1777647041000,-2000.0,0.0001188,2]
[421435152,1777647041000,-250.01,0.00011885,2]
[421435151,1777647041000,-250.0,0.00011885,2]
[421435085,1777647041000,-457.39,0.00011,2]
[421435124,1777647041000,-150.0,0.0001155,2]
[421435125,1777647041000,-200.0,0.00011555,2]
[421435123,1777647041000,-166.66,0.00011507,2]
[421435119,1777647041000,-150.0,0.0001145,2]
[421435095,1777647041000,-5734.25619333,0.00011099,2]
[421435105,1777647041000,-150.0,0.000112,2]
[421435106,1777647041000,-5734.25619333,0.00011233,2]
[421435101,1777647041000,-150.0,0.0001115,2]
[421435100,1777647041000,-711.87,0.00011126,2]
[421435098,1777647041000,-150.0,0.000111,2]
[421435094,1777647041000,-5734.25619333,0.00011099,2]
[421435096,1777647041000,-5734.25619333,0.00011099,2]
[421435099,1777647041000,-150.0,0.000111,2]
[421435122,1777647041000,-150.0,0.000115,2]
[421435103,1777647041000,-166.66,0.00011178,2]
[421435097,1777647041000,-5734.25619333,0.00011099,2]
[421435104,1777647041000,-150.0,0.000112,2]
[421435107,1777647041000,-150.0,0.0001125,2]
[421435102,1777647041000,-1350.6,0.00011167,2]
[421435109,1777647041000,-166.66,0.00011288,2]
[421435131,1777647041000,-290.62434258,0.0001164,2]
[421435108,1777647041000,-154.0,0.00011267,2]
[421435130,1777647041000,-1084.75773405,0.00011623,2]
[421435115,1777647041000,-150.0,0.000114,2]
[421435112,1777647041000,-2000.0,0.0001139,2]
[421435117,1777647041000,-150.0,0.000114,2]
[421435120,1777647041000,-5734.25619333,0.00011456,2]
[421435110,1777647041000,-150.0,0.000113,2]
[421435118,1777647041000,-150.0,0.000114,2]
[421435116,1777647041000,-150.0,0.000114,2]
[421435114,1777647041000,-711.87,0.00011398,2]
[421435111,1777647041000,-150.0,0.0001135,2]
[421435113,1777647041000,-166.66,0.00011397,2]
[421435159,1777647042000,-150.0,0.000119,2]
[421435158,1777647042000,-10000.0,0.000119,2]
[421435165,1777647042000,-2000.0,0.0001191,2]
[421435156,1777647042000,-2000.0,0.0001189,2]
[421435157,1777647042000,-2000.0,0.000119,2]
[421435155,1777647042000,-48064.9279852,0.00011885,2]
[421435154,1777647042000,-47521.735011,0.00011885,2]
[421435153,1777647042000,-486.8025399,0.00011885,2]
[421435162,1777647042000,-3546.61714055,0.000119,2]
[421435161,1777647042000,-5734.25619333,0.000119,2]
[421435164,1777647042000,-6494.88900482,0.000119,2]
[421435172,1777647042000,-666.0,0.00011999,2]
[421435160,1777647042000,-1084.75773405,0.000119,2]
[421435176,1777647042000,-1315744.17968603,0.00012,2]
[421435175,1777647042000,-1116.04046543,0.00011999,3]
[421435173,1777647042000,-1116.04046542,0.00011999,3]
[421435174,1777647042000,-1116.04046542,0.00011999,3]
[421435169,1777647042000,-161.0,0.0001199,2]
[421435163,1777647042000,-181.59316508,0.000119,2]
[421435171,1777647042000,-300.0,0.00011999,2]
[421435170,1777647042000,-4970.2,0.00011991,2]
[421435166,1777647042000,-711.87,0.00011941,2]
[421435167,1777647042000,-150.0,0.0001195,2]
[421435168,1777647042000,-801.7434564,0.00011978,2]
[421435212,1777647043000,-252.27900256,0.00010958,2]
[421435217,1777647046000,-310.546,0.00010958,2]
[421435231,1777647496000,3347.05,5.318e-05,2]
[421435234,1777647497000,41.14,5.878e-05,2]
[421435232,1777647497000,3347.05,5.598e-05,2]
[421435235,1777647497000,3347.05,6.158e-05,2]
[421435233,1777647497000,3305.91,5.878e-05,2]
[421435236,1777647497000,3347.05,6.438e-05,2]
[421435240,1777647498000,3347.05,7.278e-05,2]
[421435239,1777647498000,3347.05,6.998e-05,2]
[421435238,1777647498000,82.28,6.718e-05,2]
[421435237,1777647498000,3264.77,6.718e-05,2]
[421435241,1777647499000,3223.63,7.558e-05,2]
[421435245,1777647499000,3182.49,8.398e-05,2]
[421435246,1777647499000,164.56,8.398e-05,2]
[421435244,1777647499000,3347.05,8.118e-05,2]
[421435243,1777647499000,3347.05,7.838e-05,2]
[421435242,1777647499000,123.42,7.558e-05,2]
[421435258,1777647731000,-20.06346759,8.677e-05,2]
[421435257,1777647731000,-279.9401,8.599e-05,2]
[421435259,1777647733000,-240.42427942,8.677e-05,2]
[421435260,1777647795000,-249.89699999,8.634e-05,2]
[421435263,1777648048000,-968.58624685,8.677e-05,2]
[421435262,1777648048000,-50.10424001,8.634e-05,2]
[421435268,1777648232000,-508.61,8.677e-05,2]
[421435300,1777648238000,-6096.0,8.841e-05,2]
[421435297,1777648238000,-5766.99027402,8.841e-05,2]
[421435299,1777648238000,-3625.13384008,8.841e-05,2]
[421435298,1777648238000,-1465.35479139,8.841e-05,2]
[421435295,1777648238000,-34382.20972598,8.741e-05,2]
[421435296,1777648238000,-150.0,8.839e-05,2]
[421435293,1777648238000,-844.03567014,8.741e-05,2]
[421435294,1777648238000,-263.36630388,8.741e-05,2]
[421435292,1777648238000,-1609.36600614,8.677e-05,2]
[421435328,1777648240000,-491.42396994,8.841e-05,2]
[421435327,1777648240000,-3268.26365647,8.841e-05,2]
[421435335,1777648241000,-4503.6387245,9.67e-05,2]
[421435332,1777648241000,-3347.05,9.237e-05,2]
[421435334,1777648241000,-240.42427942,9.545e-05,2]
[421435333,1777648241000,-3347.05,9.517e-05,2]
[421435330,1777648241000,-51713.81353582,8.841e-05,2]
[421435331,1777648241000,-3347.05,8.957e-05,2]
[421435329,1777648241000,-847.36983228,8.841e-05,2]
[421435350,1777648246000,-3103.80968813,9.67e-05,2]
[421435349,1777648246000,-5496.3512755,9.67e-05,2]
[421435366,1777648248000,-150.99,9.67e-05,2]
[421435364,1777648248000,-621.0,9.67e-05,2]
[421435365,1777648248000,-2026.53031187,9.67e-05,2]
[421435363,1777648248000,-344.66,9.67e-05,2]
[421435368,1777648248000,-999.99,9.67e-05,2]
[421435370,1777648248000,-255.0,9.722e-05,2]
[421435371,1777648248000,-536.37309323,9.797e-05,2]
[421435369,1777648248000,-299.99,9.722e-05,2]
[421435367,1777648248000,-1720.79,9.67e-05,2]
[421435376,1777648250000,201.03,5.234e-05,2]
[421435378,1777648264000,152.0,9.195e-05,7]
[421435377,1777648264000,152.0,9.195e-05,7]
[421435379,1777648265000,152.0,9.195e-05,7]
[421435380,1777648266000,152.0,0.0001022,7]
[421435382,1777648267000,152.0,0.0001022,7]
[421435381,1777648267000,152.0,0.0001022,7]
[421435383,1777648549000,177.04255393,0.00010526,21]
[421435385,1777648562000,152.0,9.117e-05,7]
[421435384,1777648562000,152.0,9.117e-05,7]
[421435386,1777648628000,1515.54825265,0.00030136,120]
[421435389,1777648888000,2376.792,8.566e-05,2]
[421435390,1777648888000,163.41,8.566e-05,2]
[421435391,1777648907000,152.0,0.00010305,7]
[421435393,1777648908000,152.0,0.00010315,7]
[421435392,1777648908000,152.0,0.00010315,7]
[421435394,1777648948000,150.0,0.0003,120]
[421435396,1777649102000,153.74,6.76e-05,2]
[421435395,1777649102000,153.74,4.507e-05,2]
[421435397,1777649121000,152.0,0.00010379,7]
[421435400,1777649242000,4426.87,8.516e-05,2]
[421435401,1777649242000,-262.0,8.639e-05,2]
[421435402,1777649242000,-250.0,8.639e-05,2]
[421435403,1777649242000,-807.74557292,8.639e-05,2]
[421435413,1777649431000,-7636.50286585,8.638e-05,2]
[421435412,1777649431000,-97726.15213764,8.638e-05,2]
[421435438,1777649437000,-608.0,8.638e-05,2]
[421435463,1777649438000,-500.0,8.738e-05,2]
[421435460,1777649438000,-500.0,8.738e-05,2]
[421435466,1777649438000,-500.0,8.738e-05,2]
[421435459,1777649438000,-500.0,8.738e-05,2]
[421435456,1777649438000,-500.0,8.738e-05,2]
[421435454,1777649438000,-500.0,8.738e-05,2]
[421435450,1777649438000,-500.0,8.738e-05,2]
[421435446,1777649438000,-1200.0,8.737e-05,2]
[421435448,1777649438000,-21033.98401351,8.738e-05,2]
[421435452,1777649438000,-500.0,8.738e-05,2]
[421435451,1777649438000,-603.94656258,8.738e-05,2]
[421435462,1777649438000,-500.0,8.738e-05,2]
[421435449,1777649438000,-20599.06598649,8.738e-05,2]
[421435447,1777649438000,-150.0,8.737e-05,2]
[421435444,1777649438000,-300.0,8.737e-05,2]
[421435445,1777649438000,-300.0,8.737e-05,2]
[421435440,1777649438000,-262.0,8.639e-05,2]
[421435442,1777649438000,-178.53060129,8.736e-05,2]
[421435441,1777649438000,-1039.6241,8.639e-05,2]
[421435439,1777649438000,-17535.51429651,8.638e-05,2]
[421435453,1777649438000,-500.0,8.738e-05,2]
[421435461,1777649438000,-500.0,8.738e-05,2]
[421435443,1777649438000,-465.0,8.737e-05,2]
[421435455,1777649438000,-500.0,8.738e-05,2]
[421435457,1777649438000,-500.0,8.738e-05,2]
[421435485,1777649438000,-162.00513771,8.738e-05,2]
[421435484,1777649438000,-500.0,8.738e-05,2]
[421435481,1777649438000,-500.0,8.738e-05,2]
[421435483,1777649438000,-500.0,8.738e-05,2]
[421435482,1777649438000,-500.0,8.738e-05,2]
[421435471,1777649438000,-500.0,8.738e-05,2]
[421435473,1777649438000,-500.0,8.738e-05,2]
[421435478,1777649438000,-500.0,8.738e-05,2]
[421435476,1777649438000,-500.0,8.738e-05,2]
[421435477,1777649438000,-500.0,8.738e-05,2]
[421435472,1777649438000,-507.98231322,8.738e-05,2]
[421435474,1777649438000,-500.0,8.738e-05,2]
[421435458,1777649438000,-500.0,8.738e-05,2]
[421435465,1777649438000,-500.0,8.738e-05,2]
[421435467,1777649438000,-500.0,8.738e-05,2]
[421435479,1777649438000,-500.0,8.738e-05,2]
[421435464,1777649438000,-500.0,8.738e-05,2]
[421435468,1777649438000,-500.0,8.738e-05,2]
[421435480,1777649438000,-500.0,8.738e-05,2]
[421435475,1777649438000,-500.0,8.738e-05,2]
[421435470,1777649438000,-500.0,8.738e-05,2]
[421435499,1777649440000,-500.0,8.738e-05,2]
[421435505,1777649440000,-500.0,8.738e-05,2]
[421435503,1777649440000,-500.0,8.738e-05,2]
[421435507,1777649440000,-500.0,8.738e-05,2]
[421435511,1777649440000,-500.0,8.738e-05,2]
[421435502,1777649440000,-500.0,8.738e-05,2]
[421435500,1777649440000,-500.0,8.738e-05,2]
[421435510,1777649440000,-500.0,8.738e-05,2]
[421435501,1777649440000,-400.0,8.738e-05,2]
[421435496,1777649440000,-500.0,8.738e-05,2]
[421435486,1777649440000,-337.99486229,8.738e-05,2]
[421435494,1777649440000,-500.0,8.738e-05,2]
[421435492,1777649440000,-159.6664198,8.738e-05,2]
[421435497,1777649440000,-500.0,8.738e-05,2]
[421435491,1777649440000,-500.0,8.738e-05,2]
[421435493,1777649440000,-500.0,8.738e-05,2]
[421435489,1777649440000,-500.0,8.738e-05,2]
[421435498,1777649440000,-500.0,8.738e-05,2]
[421435490,1777649440000,-500.0,8.738e-05,2]
[421435487,1777649440000,-500.0,8.738e-05,2]
[421435488,1777649440000,-500.0,8.738e-05,2]
[421435495,1777649440000,-500.0,8.738e-05,2]
[421435508,1777649440000,-500.0,8.738e-05,2]
[421435509,1777649440000,-500.0,8.738e-05,2]
[421435506,1777649440000,-500.0,8.738e-05,2]
[421435532,1777649440000,-2101.43795739,8.741e-05,2]
[421435504,1777649440000,-500.0,8.738e-05,2]
[421435531,1777649440000,-850.70101574,8.741e-05,2]
[421435533,1777649440000,-2765.14982411,8.741e-05,2]
[421435528,1777649440000,-500.0,8.738e-05,2]
[421435529,1777649440000,-708058.58930587,8.741e-05,2]
[421435530,1777649440000,-463.17396815,8.741e-05,2]
[421435527,1777649440000,-500.0,8.738e-05,2]
[421435525,1777649440000,-500.0,8.738e-05,2]
[421435526,1777649440000,-500.0,8.738e-05,2]
[421435522,1777649440000,-500.0,8.738e-05,2]
[421435534,1777649440000,-1075.38158507,8.741e-05,2]
[421435520,1777649440000,-500.0,8.738e-05,2]
[421435519,1777649440000,-338.1974236,8.738e-05,2]
[421435518,1777649440000,-500.0,8.738e-05,2]
[421435517,1777649440000,-500.0,8.738e-05,2]
[421435516,1777649440000,-500.0,8.738e-05,2]
[421435515,1777649440000,-500.0,8.738e-05,2]
[421435512,1777649440000,-500.0,8.738e-05,2]
[421435524,1777649440000,-200.0,8.738e-05,2]
[421435523,1777649440000,-500.0,8.738e-05,2]
[421435514,1777649440000,-500.0,8.738e-05,2]
[421435521,1777649440000,-500.0,8.738e-05,2]
[421435547,1777649442000,-5891.04976532,8.741e-05,2]
[421435555,1777649445000,-155181.54538707,8.741e-05,2]
[421435573,1777649720000,521.0,0.00030137,120]
[421435574,1777649721000,-737.44348164,8.636e-05,2]
[421435575,1777649736000,-204.57955928,8.636e-05,2]
[421435576,1777649765000,175.0,8.741e-05,3]
[421435577,1777649775000,204.5796,8.538e-05,2]
[421435578,1777649786000,451.18632613,0.00030137,120]
[421435579,1777649800000,163.3759073,0.00030137,120]
[421435582,1777649809000,-150.0,8.636e-05,2]
[421435580,1777649809000,-257.97695908,8.636e-05,2]
[421435583,1777649809000,-300.0,8.636e-05,2]
[421435581,1777649809000,-287.0,8.636e-05,2]
[421435584,1777649812000,902.37265226,0.0003013,120]
[421435585,1777649826000,3408.98504092,8.622e-05,2]
[421435586,1777649847000,435.66908614,0.00030137,120]
[421435587,1777649870000,217.83454307,0.00030137,120]
[421435589,1777649883000,300.79088409,0.00030137,120]
[421435591,1777649930000,161.16,4.318e-05,2]
[421435593,1777649930000,161.16,5.757e-05,2]
[421435592,1777649930000,161.16,5.038e-05,2]
[421435596,1777649931000,161.16,7.916e-05,2]
[421435595,1777649931000,161.16,7.197e-05,2]
[421435594,1777649931000,161.16,6.477e-05,2]
[421435597,1777649952000,1000.0,8.529e-05,2]
[421435599,1777650051000,200.00103738,0.00030136,120]
[421435600,1777650146000,284.5066,8.538e-05,2]
[421435601,1777650187000,150.0,0.000301,120]
[421435619,1777650562000,-3523.01512376,8.592e-05,2]
[421435620,1777650610000,10000.01,8.538e-05,2]
[421435622,1777650610000,10000.01,8.538e-05,2]
[421435621,1777650610000,10000.01,8.538e-05,2]
[421435624,1777650610000,10000.01,8.538e-05,2]
[421435623,1777650610000,10000.01,8.538e-05,2]
[421435627,1777650610000,10000.01,8.538e-05,2]
[421435626,1777650610000,10000.01,8.538e-05,2]
[421435629,1777650610000,10000.01,8.538e-05,2]
[421435628,1777650610000,10000.01,8.538e-05,2]
[421435625,1777650610000,10000.01,8.538e-05,2]
[421437026,1777650731000,-500.0,8.637e-05,2]
[421437027,1777650731000,-500.0,8.637e-05,2]
[421437017,1777650731000,-500.0,8.637e-05,2]
[421437025,1777650731000,-500.0,8.637e-05,2]
[421437022,1777650731000,-253.17092939,8.637e-05,2]
[421437019,1777650731000,-500.0,8.637e-05,2]
[421437020,1777650731000,-500.0,8.637e-05,2]
[421437024,1777650731000,-500.0,8.637e-05,2]